[Event "Early-Titled-Tuesday-Blitz-August-29-2023"]
[Site "Chess.com"]
[Date "2023.08.29"]
[Round "10"]
[White "Orest_Vovk"]
[Black "Iball95"]
[Result "1-0"]
[WhiteElo "2590"]
[BlackElo "2774"]
[TimeControl "180+1"]
[EndTime "9:55:16 PDT"]
[Termination "Orest_Vovk won by checkmate"]

1. e4 {[%clk 0:02:56.2]} 1... c5 {[%clk 0:03:00]} 2. Nf3 {[%clk 0:02:55.5]} 2...
e6 {[%clk 0:03:00.1]} 3. Nc3 {[%clk 0:02:50.5]} 3... Nc6 {[%clk 0:02:58.9]} 4.
Bb5 {[%clk 0:02:49.9]} 4... Nge7 {[%clk 0:02:58.8]} 5. O-O {[%clk 0:02:48.8]}
5... a6 {[%clk 0:02:58.9]} 6. Bxc6 {[%clk 0:02:48.9]} 6... Nxc6 {[%clk
0:02:59.8]} 7. d4 {[%clk 0:02:49.5]} 7... cxd4 {[%clk 0:03:00.6]} 8. Nxd4 {[%clk
0:02:50]} 8... Nxd4 {[%clk 0:03:01.3]} 9. Qxd4 {[%clk 0:02:49.6]} 9... b5 {[%clk
0:03:01.9]} 10. e5 {[%clk 0:02:47]} 10... Bb7 {[%clk 0:03:00.8]} 11. Ne4 {[%clk
0:02:46.1]} 11... Qc7 {[%clk 0:02:54.9]} 12. Nd6+ {[%clk 0:02:28.9]} 12... Bxd6
{[%clk 0:02:50]} 13. Qxd6 {[%clk 0:02:20.7]} 13... Qc6 {[%clk 0:02:50.6]} 14.
Qxc6 {[%clk 0:02:16.4]} 14... Bxc6 {[%clk 0:02:51.2]} 15. Be3 {[%clk 0:02:14.1]}
15... f6 {[%clk 0:02:49.1]} 16. f4 {[%clk 0:02:09.4]} 16... O-O {[%clk
0:02:39.9]} 17. Bc5 {[%clk 0:02:06.6]} 17... Rf7 {[%clk 0:02:39.9]} 18. b4
{[%clk 0:01:58.4]} 18... a5 {[%clk 0:02:34]} 19. a3 {[%clk 0:01:55.5]} 19... h6
{[%clk 0:02:30.4]} 20. Rae1 {[%clk 0:01:49.8]} 20... axb4 {[%clk 0:02:29.2]} 21.
Bxb4 {[%clk 0:01:49.2]} 21... Rc8 {[%clk 0:02:27.8]} 22. f5 {[%clk 0:01:40.4]}
22... fxe5 {[%clk 0:02:12.4]} 23. fxe6 {[%clk 0:01:30.7]} 23... Rxf1+ {[%clk
0:02:04.2]} 24. Kxf1 {[%clk 0:01:31.6]} 24... dxe6 {[%clk 0:02:03.6]} 25. Rxe5
{[%clk 0:01:30.4]} 25... Bd5 {[%clk 0:02:04.2]} 26. c3 {[%clk 0:01:30.2]} 26...
Rc4 {[%clk 0:02:03.3]} 27. g3 {[%clk 0:01:27.2]} 27... Kf7 {[%clk 0:02:02.9]}
28. Kf2 {[%clk 0:01:24.4]} 28... g5 {[%clk 0:02:01.9]} 29. Re2 {[%clk
0:01:21.1]} 29... Kg6 {[%clk 0:02:01]} 30. Rd2 {[%clk 0:01:16]} 30... h5 {[%clk
0:01:59.8]} 31. Rd4 {[%clk 0:01:15.1]} 31... Rc7 {[%clk 0:02:00.4]} 32. Rd2
{[%clk 0:01:08]} 32... Rf7+ {[%clk 0:02:00.4]} 33. Ke3 {[%clk 0:01:08.2]} 33...
Rf3+ {[%clk 0:01:52.8]} 34. Kd4 {[%clk 0:01:08.2]} 34... h4 {[%clk 0:01:52.4]}
35. gxh4 {[%clk 0:01:06.3]} 35... gxh4 {[%clk 0:01:53.3]} 36. Kc5 {[%clk
0:01:06.5]} 36... Bc4 {[%clk 0:01:51.2]} 37. Rd4 {[%clk 0:00:50.5]} 37... Rh3
{[%clk 0:01:45.2]} 38. Rd2 {[%clk 0:00:40.1]} 38... Rf3 {[%clk 0:01:45.6]} 39.
Rd4 {[%clk 0:00:38.3]} 39... h3 {[%clk 0:01:45.8]} 40. a4 {[%clk 0:00:37.6]}
40... Rf5+ {[%clk 0:01:43.7]} 41. Kb6 {[%clk 0:00:36.7]} 41... Rf2 {[%clk
0:01:14.1]} 42. Bd6 {[%clk 0:00:27.2]} 42... Kf5 {[%clk 0:00:51.1]} 43. Bg3
{[%clk 0:00:24.9]} 43... Rb2 {[%clk 0:00:45.4]} 44. a5 {[%clk 0:00:24.5]} 44...
e5 {[%clk 0:00:43.1]} 45. Rh4 {[%clk 0:00:21.5]} 45... e4 {[%clk 0:00:41.2]} 46.
a6 {[%clk 0:00:18.6]} 46... b4 {[%clk 0:00:40.3]} 47. cxb4 {[%clk 0:00:19]}
47... Rxb4+ {[%clk 0:00:41.1]} 48. Kc5 {[%clk 0:00:19]} 48... Ra4 {[%clk
0:00:32.1]} 49. a7 {[%clk 0:00:18.5]} 49... Bd3 {[%clk 0:00:21.1]} 50. Rh7
{[%clk 0:00:14.6]} 50... e3 {[%clk 0:00:18.2]} 51. Re7 {[%clk 0:00:14.3]} 51...
e2 {[%clk 0:00:12.7]} 52. Kb6 {[%clk 0:00:14.6]} 52... Bc4 {[%clk 0:00:06.8]}
53. Re5+ {[%clk 0:00:14.3]} 53... Kg4 {[%clk 0:00:03.5]} 54. Kb7 {[%clk
0:00:12.9]} 54... Rb4+ {[%clk 0:00:04.1]} 55. Kc7 {[%clk 0:00:12.8]} 55... Ra4
{[%clk 0:00:04.7]} 56. Re4+ {[%clk 0:00:12.4]} 56... Kf3 {[%clk 0:00:05.1]} 57.
Rf4+ {[%clk 0:00:08.9]} 57... Ke3 {[%clk 0:00:04.1]} 58. Kb6 {[%clk 0:00:08.8]}
58... Kd3 {[%clk 0:00:03.2]} 59. Rf8 {[%clk 0:00:07.6]} 59... Rb4+ {[%clk
0:00:02.9]} 60. Kc5 {[%clk 0:00:07.7]} 60... Rb5+ {[%clk 0:00:03.4]} 61. Kc6
{[%clk 0:00:07.7]} 61... Ra5 {[%clk 0:00:03.4]} 62. Kb6 {[%clk 0:00:08.1]} 62...
Rb5+ {[%clk 0:00:02.7]} 63. Kc7 {[%clk 0:00:08.5]} 63... Rc5+ {[%clk 0:00:02.7]}
64. Kd6 {[%clk 0:00:07.7]} 64... Rd5+ {[%clk 0:00:02.5]} 65. Ke7 {[%clk
0:00:07.2]} 65... Ra5 {[%clk 0:00:01.9]} 66. a8=Q {[%clk 0:00:06.5]} 66... Rxa8
{[%clk 0:00:02.8]} 67. Rxa8 {[%clk 0:00:06.4]} 67... Kd2 {[%clk 0:00:02.8]} 68.
Rh8 {[%clk 0:00:06.1]} 68... Bd3 {[%clk 0:00:01.8]} 69. Rxh3 {[%clk 0:00:05.3]}
69... Bf5 {[%clk 0:00:02]} 70. Rh6 {[%clk 0:00:04.7]} 70... e1=Q+ {[%clk
0:00:01.5]} 71. Bxe1+ {[%clk 0:00:04.2]} 71... Kxe1 {[%clk 0:00:02.4]} 72. h4
{[%clk 0:00:04.5]} 72... Ke2 {[%clk 0:00:02.8]} 73. Kf6 {[%clk 0:00:05.2]} 73...
Bg4 {[%clk 0:00:02.7]} 74. Kg5 {[%clk 0:00:06.1]} 74... Kf3 {[%clk 0:00:02.4]}
75. Rf6+ {[%clk 0:00:07]} 75... Kg3 {[%clk 0:00:03.3]} 76. h5 {[%clk 0:00:06.6]}
76... Bxh5 {[%clk 0:00:04.2]} 77. Kxh5 {[%clk 0:00:06.7]} 77... Kg2 {[%clk
0:00:04.7]} 78. Kg6 {[%clk 0:00:07.6]} 78... Kg3 {[%clk 0:00:05.6]} 79. Kg7
{[%clk 0:00:08.5]} 79... Kg2 {[%clk 0:00:06.5]} 80. Kf7 {[%clk 0:00:09.1]} 80...
Kg3 {[%clk 0:00:07.4]} 81. Ke6 {[%clk 0:00:10]} 81... Kg2 {[%clk 0:00:08.3]} 82.
Rf5 {[%clk 0:00:10.7]} 82... Kg3 {[%clk 0:00:09.2]} 83. Ra5 {[%clk 0:00:11.3]}
83... Kg2 {[%clk 0:00:10.1]} 84. Ra4 {[%clk 0:00:12.2]} 84... Kg3 {[%clk
0:00:11]} 85. Ke5 {[%clk 0:00:12.5]} 85... Kg2 {[%clk 0:00:11.9]} 86. Rf4 {[%clk
0:00:12.7]} 86... Kg3 {[%clk 0:00:12.8]} 87. Ke4 {[%clk 0:00:13.1]} 87... Kg2
{[%clk 0:00:13.7]} 88. Rf3 {[%clk 0:00:13.5]} 88... Kg1 {[%clk 0:00:13.9]} 89.
Ke3 {[%clk 0:00:13.6]} 89... Kg2 {[%clk 0:00:14.8]} 90. Ke2 {[%clk 0:00:13.9]}
90... Kg1 {[%clk 0:00:15.7]} 91. Rf2 {[%clk 0:00:13.7]} 91... Kh1 {[%clk
0:00:14.7]} 92. Kf3 {[%clk 0:00:14]} 92... Kg1 {[%clk 0:00:15.6]} 93. Kg3 {[%clk
0:00:14.3]} 93... Kh1 {[%clk 0:00:16.5]} 94. Rf1# {[%clk 0:00:14.4]} 1-0

[Event "Early-Titled-Tuesday-Blitz-August-29-2023"]
[Site "Chess.com"]
[Date "2023.08.29"]
[Round "10"]
[White "TanitoluwaAps116"]
[Black "Doomfist26"]
[Result "1-0"]
[WhiteElo "2777"]
[BlackElo "2595"]
[TimeControl "180+1"]
[EndTime "9:55:16 PDT"]
[Termination "TanitoluwaAps116 won by checkmate"]

1. e4 {[%clk 0:02:42.7]} 1... e6 {[%clk 0:02:59.6]} 2. d4 {[%clk 0:02:42.5]}
2... d5 {[%clk 0:02:59.5]} 3. exd5 {[%clk 0:02:43.4]} 3... exd5 {[%clk
0:02:59.7]} 4. Nf3 {[%clk 0:02:44.3]} 4... Nc6 {[%clk 0:03:00.3]} 5. Nc3 {[%clk
0:02:38.6]} 5... Bb4 {[%clk 0:02:59.8]} 6. Bd3 {[%clk 0:02:30.2]} 6... Nf6
{[%clk 0:02:52.6]} 7. O-O {[%clk 0:02:27.4]} 7... O-O {[%clk 0:02:53.2]} 8. Bg5
{[%clk 0:02:25.2]} 8... Be6 {[%clk 0:02:47.7]} 9. Ne2 {[%clk 0:02:21.6]} 9... h6
{[%clk 0:02:47.6]} 10. Bh4 {[%clk 0:02:17.8]} 10... Bg4 {[%clk 0:02:47.3]} 11.
c3 {[%clk 0:02:10.3]} 11... Bxf3 {[%clk 0:02:37.5]} 12. gxf3 {[%clk 0:02:11.2]}
12... Bd6 {[%clk 0:02:37.1]} 13. Bc2 {[%clk 0:02:04.9]} 13... g5 {[%clk
0:02:07]} 14. Bg3 {[%clk 0:02:03]} 14... Nh5 {[%clk 0:02:07.7]} 15. Qd3 {[%clk
0:02:01.5]} 15... f5 {[%clk 0:02:08]} 16. Rae1 {[%clk 0:01:50.4]} 16... Ne7
{[%clk 0:01:59]} 17. f4 {[%clk 0:01:30.7]} 17... Ng6 {[%clk 0:01:41]} 18. Qf3
{[%clk 0:01:11.8]} 18... Nhxf4 {[%clk 0:01:26.4]} 19. Bxf4 {[%clk 0:01:07.4]}
19... Nxf4 {[%clk 0:01:21.8]} 20. Nxf4 {[%clk 0:00:53.1]} 20... Bxf4 {[%clk
0:01:21.6]} 21. Re6 {[%clk 0:00:50.6]} 21... Kg7 {[%clk 0:01:18.7]} 22. Qh5
{[%clk 0:00:45.3]} 22... Rf6 {[%clk 0:01:16]} 23. Rfe1 {[%clk 0:00:45]} 23...
Bd6 {[%clk 0:00:54.3]} 24. Bxf5 {[%clk 0:00:40.4]} 24... Qf8 {[%clk 0:00:49.9]}
25. Bd3 {[%clk 0:00:20.9]} 25... Qf7 {[%clk 0:00:44.1]} 26. Qxf7+ {[%clk
0:00:14.1]} 26... Kxf7 {[%clk 0:00:45]} 27. Rxf6+ {[%clk 0:00:13.3]} 27... Kxf6
{[%clk 0:00:45.4]} 28. Kg2 {[%clk 0:00:12.9]} 28... Rf8 {[%clk 0:00:40.4]} 29.
h3 {[%clk 0:00:13]} 29... h5 {[%clk 0:00:35.6]} 30. Be2 {[%clk 0:00:10.9]} 30...
Rh8 {[%clk 0:00:24.4]} 31. Bf3 {[%clk 0:00:09.7]} 31... c6 {[%clk 0:00:24.4]}
32. Bd1 {[%clk 0:00:07.1]} 32... Kf5 {[%clk 0:00:21.5]} 33. Re3 {[%clk
0:00:06.2]} 33... g4 {[%clk 0:00:20.4]} 34. hxg4+ {[%clk 0:00:06.3]} 34... hxg4
{[%clk 0:00:20.9]} 35. Bc2+ {[%clk 0:00:07.2]} 35... Kg5 {[%clk 0:00:20.7]} 36.
Re6 {[%clk 0:00:07.8]} 36... Bf4 {[%clk 0:00:17.5]} 37. Rg6+ {[%clk 0:00:07.7]}
37... Kh4 {[%clk 0:00:17.9]} 38. Bf5 {[%clk 0:00:07.2]} 38... Bg5 {[%clk
0:00:17.5]} 39. Rg7 {[%clk 0:00:04.8]} 39... Kh5 {[%clk 0:00:12.8]} 40. Rxb7
{[%clk 0:00:03.7]} 40... Rf8 {[%clk 0:00:13.1]} 41. Be6 {[%clk 0:00:03.5]} 41...
Bh6 {[%clk 0:00:12.4]} 42. Rf7 {[%clk 0:00:01.5]} 42... Re8 {[%clk 0:00:12]} 43.
Rf5+ {[%clk 0:00:02]} 43... Kg6 {[%clk 0:00:11.8]} 44. Bf7+ {[%clk 0:00:02.6]}
44... Kxf5 {[%clk 0:00:12.3]} 45. Bxe8 {[%clk 0:00:03.5]} 45... Bc1 {[%clk
0:00:09]} 46. b3 {[%clk 0:00:02.6]} 46... Bb2 {[%clk 0:00:09.5]} 47. Bxc6 {[%clk
0:00:03.2]} 47... Bxc3 {[%clk 0:00:09.9]} 48. Bxd5 {[%clk 0:00:03.9]} 48... Bxd4
{[%clk 0:00:10.7]} 49. Kg3 {[%clk 0:00:04.5]} 49... Bc5 {[%clk 0:00:09.7]} 50.
Bc6 {[%clk 0:00:03.7]} 50... a5 {[%clk 0:00:09.9]} 51. Bd7+ {[%clk 0:00:03.9]}
51... Ke4 {[%clk 0:00:07.6]} 52. Bxg4 {[%clk 0:00:04.8]} 52... Kd3 {[%clk
0:00:08.3]} 53. Be6 {[%clk 0:00:04.8]} 53... Kc3 {[%clk 0:00:08.4]} 54. f4
{[%clk 0:00:04.6]} 54... Kb2 {[%clk 0:00:08.7]} 55. Kg4 {[%clk 0:00:04.7]} 55...
Bb4 {[%clk 0:00:04.8]} 56. a4 {[%clk 0:00:04.5]} 56... Kc3 {[%clk 0:00:05.4]}
57. f5 {[%clk 0:00:04.3]} 57... Be7 {[%clk 0:00:05.6]} 58. Kh5 {[%clk
0:00:04.3]} 58... Kd4 {[%clk 0:00:06.3]} 59. Kg6 {[%clk 0:00:04.7]} 59... Ke5
{[%clk 0:00:07.1]} 60. Bc4 {[%clk 0:00:05.2]} 60... Bf6 {[%clk 0:00:07]} 61. b4
{[%clk 0:00:04.5]} 61... axb4 {[%clk 0:00:06.7]} 62. a5 {[%clk 0:00:05.4]} 62...
Bd8 {[%clk 0:00:06.5]} 63. a6 {[%clk 0:00:05.7]} 63... Bb6 {[%clk 0:00:04]} 64.
f6 {[%clk 0:00:06.1]} 64... Kd4 {[%clk 0:00:03.5]} 65. f7 {[%clk 0:00:03.5]}
65... Bc5 {[%clk 0:00:03.1]} 66. a7 {[%clk 0:00:03.6]} 66... Kxc4 {[%clk
0:00:03.7]} 67. a8=Q {[%clk 0:00:03.3]} 67... b3 {[%clk 0:00:04.6]} 68. Qe4+
{[%clk 0:00:03.3]} 68... Kc3 {[%clk 0:00:04.7]} 69. Qe5+ {[%clk 0:00:03.6]}
69... Kb4 {[%clk 0:00:05.2]} 70. Qxc5+ {[%clk 0:00:03.7]} 70... Kxc5 {[%clk
0:00:05.9]} 71. f8=Q+ {[%clk 0:00:04.4]} 71... Kc4 {[%clk 0:00:06.6]} 72. Qf2
{[%clk 0:00:05]} 72... Kc3 {[%clk 0:00:07.3]} 73. Qe3+ {[%clk 0:00:05.6]} 73...
Kc2 {[%clk 0:00:07.6]} 74. Qe4+ {[%clk 0:00:05.7]} 74... Kc3 {[%clk 0:00:06.9]}
75. Qc6+ {[%clk 0:00:05.5]} 75... Kd2 {[%clk 0:00:06.5]} 76. Qd5+ {[%clk
0:00:05.5]} 76... Kc2 {[%clk 0:00:07.2]} 77. Qc4+ {[%clk 0:00:05.7]} 77... Kb2
{[%clk 0:00:07.9]} 78. Kf5 {[%clk 0:00:06.1]} 78... Ka3 {[%clk 0:00:06.3]} 79.
Qa6+ {[%clk 0:00:06.3]} 79... Kb2 {[%clk 0:00:06.6]} 80. Ke4 {[%clk 0:00:06.6]}
80... Kc3 {[%clk 0:00:04.3]} 81. Qa5+ {[%clk 0:00:06.7]} 81... Kc2 {[%clk
0:00:04.4]} 82. Qc5+ {[%clk 0:00:04.9]} 82... Kb1 {[%clk 0:00:04.9]} 83. Kd3
{[%clk 0:00:04.1]} 83... b2 {[%clk 0:00:05.4]} 84. Qc2+ {[%clk 0:00:04.1]} 84...
Ka1 {[%clk 0:00:05.5]} 85. Qa4+ {[%clk 0:00:04.2]} 85... Kb1 {[%clk 0:00:06]}
86. Kc3 {[%clk 0:00:04.3]} 86... Kc1 {[%clk 0:00:06.4]} 87. Qc2# {[%clk
0:00:04.7]} 1-0

[Event "Early-Titled-Tuesday-Blitz-August-29-2023"]
[Site "Chess.com"]
[Date "2023.08.29"]
[Round "10"]
[White "tteshan"]
[Black "ajedrezhoy"]
[Result "1/2-1/2"]
[WhiteElo "2555"]
[BlackElo "2424"]
[TimeControl "180+1"]
[EndTime "9:55:56 PDT"]
[Termination "Game drawn - insufficient material"]

1. e4 {[%clk 0:03:00.9]} 1... Nf6 {[%clk 0:02:59]} 2. e5 {[%clk 0:03:00.7]} 2...
Nd5 {[%clk 0:02:58.3]} 3. c4 {[%clk 0:03:01.3]} 3... Nb6 {[%clk 0:02:57.6]} 4.
d4 {[%clk 0:03:02]} 4... d6 {[%clk 0:02:57.4]} 5. exd6 {[%clk 0:03:02.9]} 5...
cxd6 {[%clk 0:02:57.2]} 6. Nc3 {[%clk 0:03:03.4]} 6... g6 {[%clk 0:02:56.1]} 7.
Nf3 {[%clk 0:03:01.2]} 7... Bg7 {[%clk 0:02:55.7]} 8. Be2 {[%clk 0:03:00.4]}
8... O-O {[%clk 0:02:55.6]} 9. O-O {[%clk 0:03:00.5]} 9... Nc6 {[%clk
0:02:55.6]} 10. d5 {[%clk 0:02:58.2]} 10... Ne5 {[%clk 0:02:42.6]} 11. Nxe5
{[%clk 0:02:58.1]} 11... Bxe5 {[%clk 0:02:42]} 12. Bg5 {[%clk 0:02:57]} 12...
Bf5 {[%clk 0:02:34.5]} 13. Rc1 {[%clk 0:02:54.1]} 13... Rc8 {[%clk 0:02:32.8]}
14. b3 {[%clk 0:02:52.3]} 14... a6 {[%clk 0:02:27.1]} 15. Bd3 {[%clk 0:02:42.6]}
15... Bxd3 {[%clk 0:02:26.3]} 16. Qxd3 {[%clk 0:02:43.5]} 16... Nd7 {[%clk
0:02:21.1]} 17. h4 {[%clk 0:02:37]} 17... h5 {[%clk 0:02:17.8]} 18. Qf3 {[%clk
0:02:31.2]} 18... Bf6 {[%clk 0:02:15.3]} 19. Bh6 {[%clk 0:02:27.8]} 19... Bg7
{[%clk 0:02:14.1]} 20. Bxg7 {[%clk 0:02:16.1]} 20... Kxg7 {[%clk 0:02:13.4]} 21.
Ne4 {[%clk 0:02:10.8]} 21... b5 {[%clk 0:02:03.7]} 22. cxb5 {[%clk 0:01:50]}
22... axb5 {[%clk 0:02:02.8]} 23. Ng5 {[%clk 0:01:36.8]} 23... Nf6 {[%clk
0:01:48.4]} 24. Rfe1 {[%clk 0:01:34.2]} 24... Rxc1 {[%clk 0:01:46.4]} 25. Rxc1
{[%clk 0:01:35.1]} 25... Qd7 {[%clk 0:01:45.7]} 26. Rc6 {[%clk 0:01:26.4]} 26...
Ra8 {[%clk 0:01:38.7]} 27. Qe2 {[%clk 0:01:08.1]} 27... Nxd5 {[%clk 0:01:28.5]}
28. Qxb5 {[%clk 0:01:01.1]} 28... Nb4 {[%clk 0:00:59.9]} 29. Qc4 {[%clk
0:00:51.4]} 29... d5 {[%clk 0:00:57.7]} 30. Qd4+ {[%clk 0:00:38.9]} 30... Kg8
{[%clk 0:00:50.6]} 31. Rb6 {[%clk 0:00:34.4]} 31... Nxa2 {[%clk 0:00:47.8]} 32.
Qf4 {[%clk 0:00:24.3]} 32... Qf5 {[%clk 0:00:43.9]} 33. Qe3 {[%clk 0:00:16]}
33... e6 {[%clk 0:00:33.4]} 34. Rb7 {[%clk 0:00:16]} 34... Rf8 {[%clk
0:00:30.3]} 35. Qa7 {[%clk 0:00:15.5]} 35... Nc3 {[%clk 0:00:26.9]} 36. Qe3
{[%clk 0:00:11.5]} 36... Ne4 {[%clk 0:00:25.9]} 37. Nxe4 {[%clk 0:00:11.3]}
37... dxe4 {[%clk 0:00:25.7]} 38. b4 {[%clk 0:00:10.8]} 38... Qd5 {[%clk
0:00:23.8]} 39. Rc7 {[%clk 0:00:09.7]} 39... Qd1+ {[%clk 0:00:19.2]} 40. Kh2
{[%clk 0:00:10.1]} 40... Qb1 {[%clk 0:00:19.3]} 41. Qd4 {[%clk 0:00:08.9]} 41...
Qd3 {[%clk 0:00:17.9]} 42. Qxd3 {[%clk 0:00:08.3]} 42... exd3 {[%clk 0:00:17.6]}
43. Rd7 {[%clk 0:00:09]} 43... Rb8 {[%clk 0:00:17.7]} 44. Rxd3 {[%clk
0:00:09.6]} 44... Rxb4 {[%clk 0:00:17.7]} 45. g3 {[%clk 0:00:10.3]} 45... Rc4
{[%clk 0:00:17.4]} 46. Kg2 {[%clk 0:00:10.9]} 46... Kg7 {[%clk 0:00:15.9]} 47.
Rd7 {[%clk 0:00:11.6]} 47... Kf6 {[%clk 0:00:15.6]} 48. Ra7 {[%clk 0:00:12.1]}
48... Rc5 {[%clk 0:00:15.3]} 49. Kf3 {[%clk 0:00:12.6]} 49... Rf5+ {[%clk
0:00:15.3]} 50. Ke3 {[%clk 0:00:12.9]} 50... Kg7 {[%clk 0:00:14.4]} 51. Rb7
{[%clk 0:00:13.3]} 51... Kf6 {[%clk 0:00:14.5]} 52. Ra7 {[%clk 0:00:13.3]} 52...
Rd5 {[%clk 0:00:14.4]} 53. Ke4 {[%clk 0:00:12.7]} 53... Rd8 {[%clk 0:00:14.5]}
54. Rb7 {[%clk 0:00:11.9]} 54... Re8 {[%clk 0:00:14.6]} 55. Ra7 {[%clk
0:00:12.1]} 55... Re7 {[%clk 0:00:14.9]} 56. Ra6 {[%clk 0:00:12.2]} 56... Rb7
{[%clk 0:00:14.9]} 57. Rc6 {[%clk 0:00:12.1]} 57... Rb4+ {[%clk 0:00:14.1]} 58.
Ke3 {[%clk 0:00:12.1]} 58... Kf5 {[%clk 0:00:14.1]} 59. Ra6 {[%clk 0:00:09.9]}
59... f6 {[%clk 0:00:14.1]} 60. Kf3 {[%clk 0:00:09]} 60... e5 {[%clk 0:00:14]}
61. Rc6 {[%clk 0:00:07.7]} 61... Rb3+ {[%clk 0:00:14.1]} 62. Kg2 {[%clk
0:00:08.1]} 62... Ra3 {[%clk 0:00:14.4]} 63. Rb6 {[%clk 0:00:08.2]} 63... Rc3
{[%clk 0:00:14.3]} 64. Ra6 {[%clk 0:00:08.5]} 64... Rd3 {[%clk 0:00:14.2]} 65.
Rb6 {[%clk 0:00:08.3]} 65... Ra3 {[%clk 0:00:14.3]} 66. Rc6 {[%clk 0:00:08.6]}
66... g5 {[%clk 0:00:14.4]} 67. hxg5 {[%clk 0:00:08.4]} 67... fxg5 {[%clk
0:00:14.2]} 68. Rh6 {[%clk 0:00:08.8]} 68... Kg4 {[%clk 0:00:13.1]} 69. Rf6
{[%clk 0:00:08.8]} 69... e4 {[%clk 0:00:11.6]} 70. Re6 {[%clk 0:00:07.9]} 70...
Kf5 {[%clk 0:00:10.2]} 71. Rh6 {[%clk 0:00:08]} 71... Kg4 {[%clk 0:00:09]} 72.
Re6 {[%clk 0:00:07.7]} 72... Ra4 {[%clk 0:00:09.2]} 73. Re5 {[%clk 0:00:06]}
73... h4 {[%clk 0:00:08.8]} 74. gxh4 {[%clk 0:00:06.3]} 74... gxh4 {[%clk
0:00:09]} 75. Re8 {[%clk 0:00:06.8]} 75... Rd4 {[%clk 0:00:07.4]} 76. Re7 {[%clk
0:00:06.8]} 76... Kg5 {[%clk 0:00:06.8]} 77. Re8 {[%clk 0:00:07]} 77... Kf5
{[%clk 0:00:04.9]} 78. Rh8 {[%clk 0:00:06.9]} 78... Kg5 {[%clk 0:00:04.7]} 79.
Rg8+ {[%clk 0:00:07.4]} 79... Kf6 {[%clk 0:00:04.8]} 80. Rh8 {[%clk 0:00:07.6]}
80... Kg5 {[%clk 0:00:04.6]} 81. Rg8+ {[%clk 0:00:07.8]} 81... Kf5 {[%clk
0:00:04.5]} 82. Rh8 {[%clk 0:00:08.1]} 82... e3 {[%clk 0:00:04.7]} 83. fxe3
{[%clk 0:00:08]} 83... Rg4+ {[%clk 0:00:04.8]} 84. Kf3 {[%clk 0:00:08.6]} 84...
Rg3+ {[%clk 0:00:04.3]} 85. Kf2 {[%clk 0:00:09.1]} 85... Rg4 {[%clk 0:00:03.9]}
86. Kf3 {[%clk 0:00:08.8]} 86... Ra4 {[%clk 0:00:03.9]} 87. Rh5+ {[%clk
0:00:08.1]} 87... Kg6 {[%clk 0:00:03.8]} 88. Rh8 {[%clk 0:00:08.4]} 88... Kg5
{[%clk 0:00:04.1]} 89. e4 {[%clk 0:00:08.4]} 89... Ra3+ {[%clk 0:00:03.6]} 90.
Kg2 {[%clk 0:00:08.8]} 90... Kg4 {[%clk 0:00:03.5]} 91. Rg8+ {[%clk 0:00:08.6]}
91... Kf4 {[%clk 0:00:03.7]} 92. Rh8 {[%clk 0:00:08.3]} 92... Kxe4 {[%clk
0:00:03.9]} 93. Rxh4+ {[%clk 0:00:07.8]} 93... Kf5 {[%clk 0:00:04.2]} 94. Rh8
{[%clk 0:00:07.4]} 94... Kg5 {[%clk 0:00:04.2]} 95. Rg8+ {[%clk 0:00:07.7]}
95... Kf6 {[%clk 0:00:04.2]} 96. Rf8+ {[%clk 0:00:08]} 96... Kg7 {[%clk
0:00:04.4]} 97. Rf3 {[%clk 0:00:08.3]} 97... Rxf3 {[%clk 0:00:03.7]} 98. Kxf3
{[%clk 0:00:09.2]} 1/2-1/2

[Event "Early-Titled-Tuesday-Blitz-August-29-2023"]
[Site "Chess.com"]
[Date "2023.08.29"]
[Round "11"]
[White "Casper"]
[Black "hakanazeri2"]
[Result "0-1"]
[WhiteElo "2399"]
[BlackElo "2678"]
[TimeControl "180+1"]
[EndTime "9:58:23 PDT"]
[Termination "hakanazeri2 won by resignation"]

1. e4 {[%clk 0:03:00]} 1... c5 {[%clk 0:02:57.3]} 2. d4 {[%clk 0:03:00.2]} 2...
cxd4 {[%clk 0:02:56.7]} 3. Qxd4 {[%clk 0:03:00.9]} 3... Nc6 {[%clk 0:02:56.1]}
4. Qe3 {[%clk 0:03:01.3]} 4... e6 {[%clk 0:02:54.7]} 5. Nc3 {[%clk 0:03:01.5]}
5... Bb4 {[%clk 0:02:53.9]} 6. Bd2 {[%clk 0:03:01.4]} 6... Nf6 {[%clk 0:02:53]}
7. O-O-O {[%clk 0:03:00.8]} 7... O-O {[%clk 0:02:52.1]} 8. g4 {[%clk 0:03:00.2]}
8... d5 {[%clk 0:02:50.5]} 9. Qg3 {[%clk 0:02:53.2]} 9... Bxc3 {[%clk
0:02:49.1]} 10. Bxc3 {[%clk 0:02:51.4]} 10... Nxe4 {[%clk 0:02:48.3]} 11. Qf3
{[%clk 0:02:46.8]} 11... Nxc3 {[%clk 0:02:37]} 12. Qxc3 {[%clk 0:02:46.3]} 12...
e5 {[%clk 0:02:37.3]} 13. Bg2 {[%clk 0:02:40.7]} 13... Be6 {[%clk 0:02:36.6]}
14. Kb1 {[%clk 0:02:37.6]} 14... Rc8 {[%clk 0:02:33.7]} 15. Nf3 {[%clk
0:02:36.2]} 15... Bxg4 {[%clk 0:02:21.9]} 16. Rhg1 {[%clk 0:02:30.6]} 16... Nd4
{[%clk 0:02:18]} 17. Qd3 {[%clk 0:02:28.8]} 17... Bf5 {[%clk 0:02:16]} 0-1

[Event "Early-Titled-Tuesday-Blitz-August-29-2023"]
[Site "Chess.com"]
[Date "2023.08.29"]
[Round "11"]
[White "Zhigalko_Sergei"]
[Black "LiamPutnam2008"]
[Result "1-0"]
[WhiteElo "2936"]
[BlackElo "2811"]
[TimeControl "180+1"]
[EndTime "9:58:44 PDT"]
[Termination "Zhigalko_Sergei won by resignation"]

1. e4 {[%clk 0:03:00.9]} 1... c5 {[%clk 0:02:58.7]} 2. Nf3 {[%clk 0:03:01.1]}
2... e6 {[%clk 0:02:58.2]} 3. c3 {[%clk 0:03:01.4]} 3... Nf6 {[%clk 0:02:57.9]}
4. e5 {[%clk 0:03:01.9]} 4... Nd5 {[%clk 0:02:58.6]} 5. Bc4 {[%clk 0:03:02.5]}
5... Nb6 {[%clk 0:02:58.6]} 6. Bb3 {[%clk 0:03:02.5]} 6... Nc6 {[%clk
0:02:58.4]} 7. d4 {[%clk 0:03:02.7]} 7... cxd4 {[%clk 0:02:58.5]} 8. cxd4 {[%clk
0:03:03.6]} 8... d6 {[%clk 0:02:59.2]} 9. exd6 {[%clk 0:03:04.5]} 9... Bxd6
{[%clk 0:02:59.7]} 10. Nc3 {[%clk 0:03:05.3]} 10... O-O {[%clk 0:02:59.8]} 11.
O-O {[%clk 0:03:05.9]} 11... e5 {[%clk 0:02:50.6]} 12. Bg5 {[%clk 0:03:05.6]}
12... Qd7 {[%clk 0:02:41.5]} 13. dxe5 {[%clk 0:02:43.8]} 13... Nxe5 {[%clk
0:02:42.4]} 14. Re1 {[%clk 0:02:39]} 14... Qg4 {[%clk 0:02:17.8]} 15. Nxe5
{[%clk 0:02:31.3]} 1-0